[Event "Titled Tuesday Blitz March 15 Early 2022"]
[White "Urazayev, Arystanbek"]
[Black "Xie, Bryan"]
[WhiteFideId "13709810"]
[BlackFideId "30941296"]
[WhiteElo "2393"]
[BlackElo "1899"]
[Result "1-0"]
[Round "09"]
[TimeControl "180+1"]
[Date "2022.03.15"]
[WhiteClock "0:02:40"]
[BlackClock "0:01:29"]

1. d4 {[%clk 0:02:59]}  Nf6 {[%clk 0:02:59]} 2. c4 {[%clk 0:02:59]}  e6 {[%clk 0:03:00]} 3. Nc3 {[%clk 0:02:59]}  Bb4 {[%clk 0:03:01]} 4. Nf3 {[%clk 0:02:58]}  O-O {[%clk 0:02:59]} 5. Bg5 {[%clk 0:02:58]}  b6 {[%clk 0:02:49]} 6. e4 {[%clk 0:02:57]}  h6 {[%clk 0:02:47]} 7. Bh4 {[%clk 0:02:57]}  g5 {[%clk 0:02:47]} 8. Nxg5 {[%clk 0:02:57]}  hxg5 {[%clk 0:02:47]} 9. Bxg5 {[%clk 0:02:58]}  Be7 {[%clk 0:02:45]} 10. e5 {[%clk 0:02:54]}  Nh7 {[%clk 0:02:44]} 11. h4 {[%clk 0:02:51]}  Bb7 {[%clk 0:02:31]} 12. Bd3 {[%clk 0:02:51]}  Re8 {[%clk 0:02:08]} 13. Qh5 {[%clk 0:02:42]}  Nf8 {[%clk 0:01:54]} 14. Rh3 {[%clk 0:02:41]}  Bxg5 {[%clk 0:01:36]} 15. hxg5 {[%clk 0:02:40]}  Ng6 {[%clk 0:01:28]} 16. Bxg6 {[%clk 0:02:39]}  fxg6 {[%clk 0:01:28]} 17. Qh8+ {[%clk 0:02:39]}  Kf7 {[%clk 0:01:29]} 18. Rh7# {[%clk 0:02:40]} 1-0


[Site "https://www.chess.com"]

[Event "Titled Tuesday Blitz March 15 Early 2022"]
[White "Vlassov, Nikolai"]
[Black "Wong, Yinn Long"]
[WhiteFideId "4103360"]
[BlackFideId "5707684"]
[WhiteElo "2407"]
[BlackElo "2055"]
[Result "0-1"]
[Round "09"]
[TimeControl "180+1"]
[Date "2022.03.15"]
[WhiteClock "0:01:36"]
[BlackClock "0:00:52"]

1. e4 {[%clk 0:03:00]}  e6 {[%clk 0:03:00]} 2. d4 {[%clk 0:03:00]}  d5 {[%clk 0:03:01]} 3. exd5 {[%clk 0:03:01]}  exd5 {[%clk 0:03:01]} 4. Nf3 {[%clk 0:03:02]}  Nc6 {[%clk 0:03:01]} 5. Bd3 {[%clk 0:03:02]}  Bd6 {[%clk 0:03:02]} 6. O-O {[%clk 0:03:02]}  Nge7 {[%clk 0:03:02]} 7. Re1 {[%clk 0:03:02]}  Bg4 {[%clk 0:03:01]} 8. c3 {[%clk 0:03:03]}  Qd7 {[%clk 0:03:01]} 9. Nbd2 {[%clk 0:03:03]}  O-O-O {[%clk 0:02:59]} 10. b4 {[%clk 0:03:03]}  Rde8 {[%clk 0:02:59]} 11. b5 {[%clk 0:03:02]}  Nd8 {[%clk 0:03:00]} 12. Qa4 {[%clk 0:03:02]}  Kb8 {[%clk 0:03:00]} 13. Ne5 {[%clk 0:02:58]}  Bxe5 {[%clk 0:02:58]} 14. dxe5 {[%clk 0:02:59]}  Ng6 {[%clk 0:02:50]} 15. f4 {[%clk 0:02:42]}  f6 {[%clk 0:02:42]} 16. Nb3 {[%clk 0:02:24]}  fxe5 {[%clk 0:02:39]} 17. Bxg6 {[%clk 0:02:24]}  hxg6 {[%clk 0:02:38]} 18. fxe5 {[%clk 0:02:24]}  Qf5 {[%clk 0:02:17]} 19. Bf4 {[%clk 0:02:08]}  Ne6 {[%clk 0:01:52]} 20. Bg3 {[%clk 0:02:08]}  Qd3 {[%clk 0:01:32]} 21. Rac1 {[%clk 0:01:58]}  Qc4 {[%clk 0:01:04]} 22. Qxc4 {[%clk 0:01:50]}  dxc4 {[%clk 0:01:05]} 23. Na5 {[%clk 0:01:50]}  Nc5 {[%clk 0:01:05]} 24. Re3 {[%clk 0:01:45]}  Be6 {[%clk 0:01:02]} 25. Rd1 {[%clk 0:01:37]}  Kc8 {[%clk 0:00:53]} 26. Re4 {[%clk 0:01:36]}  Nxe4 {[%clk 0:00:52]} 0-1


[Site "https://www.chess.com"]

[Event "Titled Tuesday Blitz March 15 Early 2022"]
[White "Weetik, Vjacheslav"]
[Black "Koridze, Lile"]
[WhiteFideId "4153472"]
[BlackFideId "13612514"]
[WhiteElo "2469"]
[BlackElo "1999"]
[Result "0-1"]
[Round "09"]
[TimeControl "180+1"]
[Date "2022.03.15"]
[WhiteClock "0:00:03"]
[BlackClock "0:00:15"]

1. d4 {[%clk 0:02:59]}  Nf6 {[%clk 0:02:28]} 2. Nf3 {[%clk 0:02:58]}  d5 {[%clk 0:02:26]} 3. c4 {[%clk 0:02:57]}  e6 {[%clk 0:02:24]} 4. Nc3 {[%clk 0:02:57]}  Bb4 {[%clk 0:02:23]} 5. Qa4+ {[%clk 0:02:52]}  Nc6 {[%clk 0:02:22]} 6. Bg5 {[%clk 0:02:37]}  O-O {[%clk 0:02:19]} 7. e3 {[%clk 0:02:24]}  h6 {[%clk 0:02:16]} 8. Bxf6 {[%clk 0:02:19]}  Qxf6 {[%clk 0:02:16]} 9. cxd5 {[%clk 0:02:19]}  exd5 {[%clk 0:02:15]} 10. Be2 {[%clk 0:02:11]}  Be6 {[%clk 0:02:12]} 11. O-O {[%clk 0:02:08]}  Bd6 {[%clk 0:02:06]} 12. Nb5 {[%clk 0:01:58]}  Rfd8 {[%clk 0:02:02]} 13. Rac1 {[%clk 0:01:48]}  Bg4 {[%clk 0:02:01]} 14. Nxd6 {[%clk 0:01:40]}  Rxd6 {[%clk 0:01:59]} 15. Rc5 {[%clk 0:01:38]}  Qe7 {[%clk 0:01:55]} 16. Rfc1 {[%clk 0:01:37]}  Rad8 {[%clk 0:01:51]} 17. b4 {[%clk 0:01:26]}  a6 {[%clk 0:01:51]} 18. b5 {[%clk 0:01:24]}  axb5 {[%clk 0:01:51]} 19. Qxb5 {[%clk 0:01:24]}  Bc8 {[%clk 0:01:38]} 20. Ne5 {[%clk 0:01:07]}  Nxe5 {[%clk 0:01:29]} 21. dxe5 {[%clk 0:01:08]}  Qxe5 {[%clk 0:01:30]} 22. Rxc7 {[%clk 0:01:07]}  Bf5 {[%clk 0:00:59]} 23. Rxb7 {[%clk 0:01:01]}  Rg6 {[%clk 0:00:58]} 24. Bf3 {[%clk 0:00:28]}  Be4 {[%clk 0:00:48]} 25. Qe2 {[%clk 0:00:26]}  d4 {[%clk 0:00:47]} 26. exd4 {[%clk 0:00:23]}  Rxd4 {[%clk 0:00:44]} 27. Re1 {[%clk 0:00:19]}  Re6 {[%clk 0:00:35]} 28. Rb2 {[%clk 0:00:04]}  Bxf3 {[%clk 0:00:32]} 29. Qxe5 {[%clk 0:00:04]}  Rxe5 {[%clk 0:00:31]} 30. Rc1 {[%clk 0:00:01]}  Rd1+ {[%clk 0:00:24]} 31. Rxd1 {[%clk 0:00:01]}  Bxd1 {[%clk 0:00:25]} 32. h3 {[%clk 0:00:02]}  Ra5 {[%clk 0:00:25]} 33. Rd2 {[%clk 0:00:02]}  Ba4 {[%clk 0:00:25]} 34. Kh2 {[%clk 0:00:02]}  Kf8 {[%clk 0:00:21]} 35. Rb2 {[%clk 0:00:02]}  Ke7 {[%clk 0:00:21]} 36. Rb7+ {[%clk 0:00:02]}  Bd7 {[%clk 0:00:21]} 37. Rb2 {[%clk 0:00:02]}  Be6 {[%clk 0:00:21]} 38. g4 {[%clk 0:00:02]}  Rxa2 {[%clk 0:00:21]} 39. Rb7+ {[%clk 0:00:03]}  Kf6 {[%clk 0:00:21]} 40. Kg3 {[%clk 0:00:04]}  Ra3+ {[%clk 0:00:20]} 41. Kh2 {[%clk 0:00:04]}  Rf3 {[%clk 0:00:18]} 42. Kg2 {[%clk 0:00:03]}  Bd5 {[%clk 0:00:16]} 43. Rb6+ {[%clk 0:00:04]}  Ke5 {[%clk 0:00:15]} 44. Rb5 {[%clk 0:00:03]}  Rb3+ {[%clk 0:00:15]} 0-1


[Site "https://www.chess.com"]

[Event "Titled Tuesday Blitz March 15 Early 2022"]
[White "Yang, Kaiqi"]
[Black "Horcajuelo Rocamora, Martin"]
[WhiteFideId "8604398"]
[BlackFideId "24573027"]
[WhiteElo "2373"]
[BlackElo "1706"]
[Result "0-1"]
[Round "09"]
[TimeControl "180+1"]
[Date "2022.03.15"]
[WhiteClock "0:00:02"]
[BlackClock "0:01:00"]

1. e4 {[%clk 0:02:31]}  e5 {[%clk 0:02:58]} 2. Nf3 {[%clk 0:02:31]}  Nc6 {[%clk 0:02:56]} 3. d4 {[%clk 0:02:31]}  exd4 {[%clk 0:02:56]} 4. Bc4 {[%clk 0:02:31]}  Nf6 {[%clk 0:02:54]} 5. e5 {[%clk 0:02:31]}  d5 {[%clk 0:02:55]} 6. Bb5 {[%clk 0:02:32]}  Ne4 {[%clk 0:02:54]} 7. Nxd4 {[%clk 0:02:32]}  Bd7 {[%clk 0:02:55]} 8. Bxc6 {[%clk 0:02:32]}  bxc6 {[%clk 0:02:56]} 9. O-O {[%clk 0:02:31]}  Bc5 {[%clk 0:02:56]} 10. Be3 {[%clk 0:02:30]}  Qb8 {[%clk 0:02:50]} 11. Nc3 {[%clk 0:02:22]}  Nxc3 {[%clk 0:02:45]} 12. bxc3 {[%clk 0:02:22]}  Qb6 {[%clk 0:02:44]} 13. Rb1 {[%clk 0:02:17]}  Qa6 {[%clk 0:02:39]} 14. Qd2 {[%clk 0:02:05]}  O-O {[%clk 0:02:37]} 15. Nb3 {[%clk 0:02:05]}  Bxe3 {[%clk 0:02:35]} 16. Qxe3 {[%clk 0:02:06]}  Bf5 {[%clk 0:02:34]} 17. Nd4 {[%clk 0:01:53]}  Bg6 {[%clk 0:02:30]} 18. f4 {[%clk 0:01:43]}  c5 {[%clk 0:02:27]} 19. Nb3 {[%clk 0:01:43]}  Qxa2 {[%clk 0:02:20]} 20. f5 {[%clk 0:01:37]}  Bh5 {[%clk 0:02:16]} 21. Nxc5 {[%clk 0:01:08]}  Qxc2 {[%clk 0:02:11]} 22. Rbc1 {[%clk 0:01:03]}  Qe2 {[%clk 0:02:07]} 23. Qg3 {[%clk 0:00:40]}  Qg4 {[%clk 0:02:04]} 24. Qd3 {[%clk 0:00:37]}  c6 {[%clk 0:01:54]} 25. Rf2 {[%clk 0:00:19]}  Rae8 {[%clk 0:01:51]} 26. Nd7 {[%clk 0:00:19]}  g6 {[%clk 0:01:23]} 27. h3 {[%clk 0:00:18]}  Qg5 {[%clk 0:01:19]} 28. Re1 {[%clk 0:00:18]}  Kg7 {[%clk 0:01:08]} 29. Nxf8 {[%clk 0:00:14]}  Rxf8 {[%clk 0:01:08]} 30. g4 {[%clk 0:00:13]}  Rh8 {[%clk 0:01:05]} 31. Rg2 {[%clk 0:00:13]}  Qh4 {[%clk 0:01:03]} 32. gxh5 {[%clk 0:00:13]}  Qxe1+ {[%clk 0:01:03]} 33. Kh2 {[%clk 0:00:01]}  Qxe5+ {[%clk 0:01:03]} 34. Kh1 {[%clk 0:00:02]}  Rb8 {[%clk 0:01:00]} 0-1


[Site "https://www.chess.com"]

[Event "Titled Tuesday Blitz March 15 Early 2022"]
[White "Yedidia, Daniel"]
[Black "Goryachkina, Aleksandra"]
[WhiteFideId "30905907"]
[BlackFideId "4147103"]
[WhiteElo "2489"]
[BlackElo "2426"]
[Result "1/2-1/2"]
[Round "09"]
[TimeControl "180+1"]
[Date "2022.03.15"]
[WhiteClock "0:00:11"]
[BlackClock "0:00:01"]

1. d4 {[%clk 0:03:00]}  f6 {[%clk 0:02:57]} 2. e4 {[%clk 0:02:58]}  e6 {[%clk 0:02:55]} 3. Nf3 {[%clk 0:02:57]}  d5 {[%clk 0:02:54]} 4. Bd3 {[%clk 0:02:55]}  Ne7 {[%clk 0:02:40]} 5. O-O {[%clk 0:02:52]}  Ng6 {[%clk 0:02:36]} 6. Re1 {[%clk 0:02:43]}  Be7 {[%clk 0:02:35]} 7. Qe2 {[%clk 0:02:35]}  c6 {[%clk 0:02:29]} 8. h4 {[%clk 0:02:23]}  O-O {[%clk 0:02:25]} 9. exd5 {[%clk 0:02:18]}  cxd5 {[%clk 0:02:23]} 10. h5 {[%clk 0:02:16]}  Nh8 {[%clk 0:02:23]} 11. h6 {[%clk 0:02:12]}  g6 {[%clk 0:02:21]} 12. c4 {[%clk 0:02:09]}  Nc6 {[%clk 0:02:16]} 13. Nc3 {[%clk 0:02:06]}  Nf7 {[%clk 0:02:15]} 14. a3 {[%clk 0:02:03]}  dxc4 {[%clk 0:02:03]} 15. Bxc4 {[%clk 0:02:01]}  Nxd4 {[%clk 0:01:59]} 16. Nxd4 {[%clk 0:01:59]}  Qxd4 {[%clk 0:01:59]} 17. Bxe6 {[%clk 0:01:46]}  Bxe6 {[%clk 0:01:47]} 18. Qxe6 {[%clk 0:01:47]}  Bd6 {[%clk 0:01:04]} 19. Be3 {[%clk 0:01:16]}  Qh4 {[%clk 0:01:03]} 20. Ne4 {[%clk 0:01:05]}  Be5 {[%clk 0:00:56]} 21. g3 {[%clk 0:00:56]}  Qxe4 {[%clk 0:00:53]} 22. Bc5 {[%clk 0:00:41]}  Qc6 {[%clk 0:00:42]} 23. Qxc6 {[%clk 0:00:38]}  bxc6 {[%clk 0:00:42]} 24. Bxf8 {[%clk 0:00:38]}  Kxf8 {[%clk 0:00:43]} 25. Rac1 {[%clk 0:00:37]}  Rc8 {[%clk 0:00:43]} 26. Rc2 {[%clk 0:00:34]}  Nxh6 {[%clk 0:00:41]} 27. f4 {[%clk 0:00:35]}  Bd4+ {[%clk 0:00:41]} 28. Kg2 {[%clk 0:00:35]}  Nf5 {[%clk 0:00:41]} 29. Kf3 {[%clk 0:00:33]}  Bb6 {[%clk 0:00:41]} 30. Rc4 {[%clk 0:00:32]}  Kf7 {[%clk 0:00:38]} 31. Rd1 {[%clk 0:00:31]}  Rd8 {[%clk 0:00:36]} 32. Rxd8 {[%clk 0:00:25]}  Bxd8 {[%clk 0:00:36]} 33. g4 {[%clk 0:00:25]}  Ne7 {[%clk 0:00:36]} 34. Ra4 {[%clk 0:00:24]}  Bb6 {[%clk 0:00:36]} 35. Ke4 {[%clk 0:00:24]}  f5+ {[%clk 0:00:36]} 36. Kf3 {[%clk 0:00:21]}  fxg4+ {[%clk 0:00:35]} 37. Kxg4 {[%clk 0:00:22]}  Kf6 {[%clk 0:00:35]} 38. Re4 {[%clk 0:00:19]}  h5+ {[%clk 0:00:34]} 39. Kf3 {[%clk 0:00:18]}  Nf5 {[%clk 0:00:25]} 40. Re8 {[%clk 0:00:17]}  Nd4+ {[%clk 0:00:20]} 41. Ke4 {[%clk 0:00:15]}  h4 {[%clk 0:00:20]} 42. Rh8 {[%clk 0:00:14]}  g5 {[%clk 0:00:19]} 43. Rh6+ {[%clk 0:00:14]}  Kg7 {[%clk 0:00:19]} 44. fxg5 {[%clk 0:00:15]}  c5 {[%clk 0:00:15]} 45. Rxh4 {[%clk 0:00:13]}  Kg6 {[%clk 0:00:16]} 46. Rg4 {[%clk 0:00:10]}  Nb3 {[%clk 0:00:14]} 47. Rg2 {[%clk 0:00:08]}  c4 {[%clk 0:00:14]} 48. Kd5 {[%clk 0:00:07]}  Na5 {[%clk 0:00:13]} 49. Ke4 {[%clk 0:00:05]}  Nb7 {[%clk 0:00:11]} 50. Kf3 {[%clk 0:00:05]}  Nd6 {[%clk 0:00:10]} 51. Kg4 {[%clk 0:00:06]}  Nf7 {[%clk 0:00:10]} 52. Rd2 {[%clk 0:00:05]}  Ne5+ {[%clk 0:00:09]} 53. Kf4 {[%clk 0:00:05]}  Nd3+ {[%clk 0:00:09]} 54. Kg4 {[%clk 0:00:04]}  Ne5+ {[%clk 0:00:05]} 55. Kf4 {[%clk 0:00:05]}  Nd3+ {[%clk 0:00:06]} 56. Kg4 {[%clk 0:00:04]}  Be3 {[%clk 0:00:06]} 57. Re2 {[%clk 0:00:03]}  Bxg5 {[%clk 0:00:06]} 58. Re6+ {[%clk 0:00:03]}  Bf6 {[%clk 0:00:06]} 59. Ra6 {[%clk 0:00:04]}  Nxb2 {[%clk 0:00:06]} 60. Rxa7 {[%clk 0:00:04]}  c3 {[%clk 0:00:06]} 61. Rc7 {[%clk 0:00:05]}  Na4 {[%clk 0:00:06]} 62. Kf3 {[%clk 0:00:05]}  Kf5 {[%clk 0:00:06]} 63. Ke3 {[%clk 0:00:04]}  Nb2 {[%clk 0:00:06]} 64. Rc5+ {[%clk 0:00:03]}  Be5 {[%clk 0:00:05]} 65. Rc6 {[%clk 0:00:02]}  Na4 {[%clk 0:00:04]} 66. Rc4 {[%clk 0:00:02]}  Nb2 {[%clk 0:00:03]} 67. Rc6 {[%clk 0:00:03]}  Kg5 {[%clk 0:00:03]} 68. Rc5 {[%clk 0:00:03]}  Kf6 {[%clk 0:00:03]} 69. Rc6+ {[%clk 0:00:03]}  Ke7 {[%clk 0:00:03]} 70. Ke4 {[%clk 0:00:03]}  Bf6 {[%clk 0:00:03]} 71. Kd5 {[%clk 0:00:03]}  Nd3 {[%clk 0:00:03]} 72. Ke4 {[%clk 0:00:01]}  Nf2+ {[%clk 0:00:03]} 73. Kd5 {[%clk 0:00:02]}  Nd1 {[%clk 0:00:03]} 74. Rc7+ {[%clk 0:00:03]}  Kd8 {[%clk 0:00:02]} 75. Rc6 {[%clk 0:00:03]}  Bg7 {[%clk 0:00:02]} 76. Ke6 {[%clk 0:00:04]}  Ne3 {[%clk 0:00:01]} 77. Rc5 {[%clk 0:00:03]}  c2 {[%clk 0:00:02]} 78. a4 {[%clk 0:00:03]}  Bb2 {[%clk 0:00:02]} 79. a5 {[%clk 0:00:02]}  c1=Q {[%clk 0:00:02]} 80. Rxc1 {[%clk 0:00:03]}  Bxc1 {[%clk 0:00:02]} 81. Kd6 {[%clk 0:00:04]}  Kc8 {[%clk 0:00:03]} 82. Kc6 {[%clk 0:00:04]}  Kb8 {[%clk 0:00:03]} 83. Kb6 {[%clk 0:00:05]}  Ka8 {[%clk 0:00:04]} 84. Ka6 {[%clk 0:00:05]}  Nf5 {[%clk 0:00:03]} 85. Kb5 {[%clk 0:00:06]}  Bd2 {[%clk 0:00:04]} 86. a6 {[%clk 0:00:06]}  Be1 {[%clk 0:00:04]} 87. Kb6 {[%clk 0:00:07]}  Bf2+ {[%clk 0:00:04]} 88. Kc6 {[%clk 0:00:08]}  Ka7 {[%clk 0:00:05]} 89. Kb5 {[%clk 0:00:08]}  Bg1 {[%clk 0:00:04]} 90. Kc6 {[%clk 0:00:09]}  Kxa6 {[%clk 0:00:04]} 91. Kd5 {[%clk 0:00:10]}  Kb5 {[%clk 0:00:05]} 92. Ke5 {[%clk 0:00:11]}  Nd4 {[%clk 0:00:04]} 93. Kd5 {[%clk 0:00:11]}  Nb3 {[%clk 0:00:03]} 94. Ke5 {[%clk 0:00:12]}  Kc5 {[%clk 0:00:03]} 95. Ke4 {[%clk 0:00:11]}  Nd4 {[%clk 0:00:02]} 96. Kd3 {[%clk 0:00:11]}  Kd5 {[%clk 0:00:01]} 97. Kd2 {[%clk 0:00:11]} 1/2-1/2


[Site "https://www.chess.com"]

[Event "Titled Tuesday Blitz March 15 Early 2022"]
[White "Zheenbekov, Nurgazy"]
[Black "volunteers1998"]
[WhiteFideId "13800485"]
[WhiteElo "1959"]
[BlackElo "2269"]
[Result "1-0"]
[Round "09"]
[TimeControl "180+1"]
[Date "2022.03.15"]
[WhiteClock "0:01:05"]
[BlackClock "0:00:57"]

1. e4 {[%clk 0:02:59]}  c5 {[%clk 0:02:59]} 2. Nf3 {[%clk 0:02:59]}  Nc6 {[%clk 0:02:58]} 3. Bb5 {[%clk 0:02:59]}  d6 {[%clk 0:02:57]} 4. O-O {[%clk 0:02:58]}  Bd7 {[%clk 0:02:54]} 5. Re1 {[%clk 0:02:57]}  Nf6 {[%clk 0:02:51]} 6. c3 {[%clk 0:02:57]}  a6 {[%clk 0:02:48]} 7. Bf1 {[%clk 0:02:56]}  g6 {[%clk 0:02:45]} 8. d4 {[%clk 0:02:56]}  cxd4 {[%clk 0:02:42]} 9. cxd4 {[%clk 0:02:56]}  Bg7 {[%clk 0:02:40]} 10. Nc3 {[%clk 0:02:56]}  O-O {[%clk 0:02:37]} 11. h3 {[%clk 0:02:56]}  b5 {[%clk 0:02:35]} 12. e5 {[%clk 0:02:53]}  dxe5 {[%clk 0:02:33]} 13. dxe5 {[%clk 0:02:52]}  Ne8 {[%clk 0:02:32]} 14. Bf4 {[%clk 0:02:48]}  Nc7 {[%clk 0:02:29]} 15. Qd2 {[%clk 0:02:35]}  Bf5 {[%clk 0:02:20]} 16. Qc1 {[%clk 0:02:35]}  Ne6 {[%clk 0:02:17]} 17. Bh6 {[%clk 0:02:34]}  Nc5 {[%clk 0:02:08]} 18. Bxg7 {[%clk 0:02:33]}  Kxg7 {[%clk 0:02:04]} 19. Nxb5 {[%clk 0:02:27]}  axb5 {[%clk 0:02:00]} 20. Qxc5 {[%clk 0:02:26]}  Rc8 {[%clk 0:01:59]} 21. Qxb5 {[%clk 0:02:25]}  Nd4 {[%clk 0:01:57]} 22. Nxd4 {[%clk 0:02:22]}  Qxd4 {[%clk 0:01:58]} 23. Rad1 {[%clk 0:02:13]}  Qc5 {[%clk 0:01:51]} 24. Qxc5 {[%clk 0:02:12]}  Rxc5 {[%clk 0:01:52]} 25. b4 {[%clk 0:02:11]}  Rc2 {[%clk 0:01:50]} 26. a4 {[%clk 0:02:09]}  Rb8 {[%clk 0:01:48]} 27. b5 {[%clk 0:02:05]}  Ra2 {[%clk 0:01:43]} 28. Ra1 {[%clk 0:02:04]}  Rb2 {[%clk 0:01:43]} 29. a5 {[%clk 0:02:03]}  Bd7 {[%clk 0:01:38]} 30. Reb1 {[%clk 0:01:55]}  Rxb1 {[%clk 0:01:23]} 31. Rxb1 {[%clk 0:01:54]}  Bf5 {[%clk 0:01:19]} 32. Ra1 {[%clk 0:01:50]}  Kf8 {[%clk 0:01:17]} 33. a6 {[%clk 0:01:50]}  Be4 {[%clk 0:01:14]} 34. f3 {[%clk 0:01:40]}  Ba8 {[%clk 0:01:12]} 35. Bd3 {[%clk 0:01:24]}  Ke8 {[%clk 0:01:08]} 36. Be4 {[%clk 0:01:05]}  Bxe4 {[%clk 0:01:04]} 37. fxe4 {[%clk 0:01:05]}  Kd7 {[%clk 0:01:02]} 38. b6 {[%clk 0:01:05]}  Kc6 {[%clk 0:01:00]} 39. b7 {[%clk 0:01:05]}  Kc7 {[%clk 0:00:57]} 40. a7 {[%clk 0:01:05]} 1-0


[Site "https://www.chess.com"]

[Event "Titled Tuesday Blitz March 15 Early 2022"]
[White "Zhigalko, Sergei"]
[Black "Chen, Qi b"]
[WhiteFideId "13502956"]
[BlackFideId "8614733"]
[WhiteElo "2662"]
[BlackElo "2432"]
[Result "0-1"]
[Round "09"]
[TimeControl "180+1"]
[Date "2022.03.15"]
[WhiteClock "0:00:02"]
[BlackClock "0:00:17"]

1. e4 {[%clk 0:03:00]}  e5 {[%clk 0:02:59]} 2. Nf3 {[%clk 0:03:01]}  Nc6 {[%clk 0:02:59]} 3. Bc4 {[%clk 0:03:01]}  Nf6 {[%clk 0:02:59]} 4. d3 {[%clk 0:03:00]}  h6 {[%clk 0:02:59]} 5. O-O {[%clk 0:02:59]}  d6 {[%clk 0:02:59]} 6. c3 {[%clk 0:02:58]}  g6 {[%clk 0:02:53]} 7. a4 {[%clk 0:02:56]}  Bg7 {[%clk 0:02:54]} 8. Re1 {[%clk 0:02:56]}  O-O {[%clk 0:02:53]} 9. Nbd2 {[%clk 0:02:56]}  a5 {[%clk 0:02:52]} 10. Ba2 {[%clk 0:02:48]}  Kh7 {[%clk 0:02:48]} 11. Nf1 {[%clk 0:02:32]}  Be6 {[%clk 0:02:27]} 12. Bxe6 {[%clk 0:02:23]}  fxe6 {[%clk 0:02:27]} 13. Ng3 {[%clk 0:02:23]}  Qe7 {[%clk 0:02:08]} 14. h3 {[%clk 0:02:16]}  Nd7 {[%clk 0:02:02]} 15. Be3 {[%clk 0:02:15]}  Rf7 {[%clk 0:01:52]} 16. Qe2 {[%clk 0:02:01]}  Raf8 {[%clk 0:01:50]} 17. Rad1 {[%clk 0:01:57]}  d5 {[%clk 0:01:33]} 18. Kh2 {[%clk 0:01:13]}  d4 {[%clk 0:01:10]} 19. Bc1 {[%clk 0:01:05]}  Nc5 {[%clk 0:01:05]} 20. Qc2 {[%clk 0:01:05]}  Qd6 {[%clk 0:01:03]} 21. Kg1 {[%clk 0:00:37]}  b6 {[%clk 0:00:56]} 22. Re2 {[%clk 0:00:36]}  Rxf3 {[%clk 0:00:52]} 23. gxf3 {[%clk 0:00:37]}  Rxf3 {[%clk 0:00:53]} 24. Kg2 {[%clk 0:00:36]}  Rf7 {[%clk 0:00:49]} 25. f3 {[%clk 0:00:22]}  Ne7 {[%clk 0:00:48]} 26. cxd4 {[%clk 0:00:16]}  exd4 {[%clk 0:00:48]} 27. f4 {[%clk 0:00:16]}  e5 {[%clk 0:00:47]} 28. Qc4 {[%clk 0:00:10]}  Rf8 {[%clk 0:00:42]} 29. f5 {[%clk 0:00:04]}  gxf5 {[%clk 0:00:36]} 30. exf5 {[%clk 0:00:04]}  Nxf5 {[%clk 0:00:28]} 31. Rf1 {[%clk 0:00:04]}  Nh4+ {[%clk 0:00:26]} 32. Kg1 {[%clk 0:00:03]}  e4 {[%clk 0:00:18]} 33. Nxe4 {[%clk 0:00:01]}  Nxe4 {[%clk 0:00:17]} 34. dxe4 {[%clk 0:00:02]}  Qg3+ {[%clk 0:00:17]} 0-1


[Site "https://www.chess.com"]

[Event "Titled Tuesday Blitz March 15 Early 2022"]
[White "Alinasab, Mobina"]
[Black "Skliarov, Viktor"]
[WhiteFideId "12528897"]
[BlackFideId "14106736"]
[WhiteElo "2052"]
[BlackElo "2229"]
[Result "1/2-1/2"]
[Round "10"]
[TimeControl "180+1"]
[Date "2022.03.15"]
[WhiteClock "0:00:12"]
[BlackClock "0:00:15"]

1. e4 {[%clk 0:02:53]}  c5 {[%clk 0:03:00]} 2. Nf3 {[%clk 0:02:54]}  Nc6 {[%clk 0:02:59]} 3. d4 {[%clk 0:02:54]}  cxd4 {[%clk 0:02:59]} 4. Nxd4 {[%clk 0:02:55]}  Nf6 {[%clk 0:03:00]} 5. Nc3 {[%clk 0:02:55]}  e5 {[%clk 0:03:00]} 6. Ndb5 {[%clk 0:02:55]}  d6 {[%clk 0:03:00]} 7. Bg5 {[%clk 0:02:56]}  a6 {[%clk 0:03:00]} 8. Na3 {[%clk 0:02:56]}  b5 {[%clk 0:03:01]} 9. Bxf6 {[%clk 0:02:57]}  gxf6 {[%clk 0:03:01]} 10. Nd5 {[%clk 0:02:58]}  f5 {[%clk 0:03:01]} 11. Bd3 {[%clk 0:02:58]}  Be6 {[%clk 0:03:01]} 12. c4 {[%clk 0:02:58]}  Qa5+ {[%clk 0:02:56]} 13. Qd2 {[%clk 0:02:55]}  Qxd2+ {[%clk 0:02:56]} 14. Kxd2 {[%clk 0:02:56]}  Bh6+ {[%clk 0:02:57]} 15. Kd1 {[%clk 0:02:56]}  Bxd5 {[%clk 0:02:54]} 16. exd5 {[%clk 0:02:51]}  Nd4 {[%clk 0:02:54]} 17. cxb5 {[%clk 0:02:51]}  e4 {[%clk 0:02:53]} 18. Bc4 {[%clk 0:02:47]}  axb5 {[%clk 0:02:50]} 19. Nxb5 {[%clk 0:02:48]}  Nxb5 {[%clk 0:02:48]} 20. Bxb5+ {[%clk 0:02:49]}  Ke7 {[%clk 0:02:49]} 21. Bc6 {[%clk 0:02:47]}  Rab8 {[%clk 0:02:37]} 22. Kc2 {[%clk 0:02:47]}  Rb4 {[%clk 0:02:24]} 23. b3 {[%clk 0:02:36]}  Rg8 {[%clk 0:02:13]} 24. g3 {[%clk 0:02:36]}  f4 {[%clk 0:02:09]} 25. a3 {[%clk 0:02:34]}  Rd4 {[%clk 0:02:07]} 26. Rad1 {[%clk 0:02:27]}  Rxd1 {[%clk 0:02:03]} 27. Rxd1 {[%clk 0:02:27]}  e3 {[%clk 0:01:52]} 28. fxe3 {[%clk 0:02:24]}  fxg3 {[%clk 0:01:51]} 29. hxg3 {[%clk 0:02:24]}  Rxg3 {[%clk 0:01:51]} 30. e4 {[%clk 0:02:14]}  Be3 {[%clk 0:01:21]} 31. b4 {[%clk 0:01:26]}  h5 {[%clk 0:01:21]} 32. Rh1 {[%clk 0:01:13]}  Bd4 {[%clk 0:01:00]} 33. a4 {[%clk 0:01:09]}  Rc3+ {[%clk 0:01:00]} 34. Kd2 {[%clk 0:01:01]}  Rc4 {[%clk 0:00:48]} 35. Rxh5 {[%clk 0:00:33]}  Rxb4 {[%clk 0:00:49]} 36. Kd3 {[%clk 0:00:28]}  Bc5 {[%clk 0:00:42]} 37. e5 {[%clk 0:00:24]}  Rb3+ {[%clk 0:00:29]} 38. Kc4 {[%clk 0:00:20]}  Rb4+ {[%clk 0:00:28]} 39. Kc3 {[%clk 0:00:21]}  Rf4 {[%clk 0:00:21]} 40. exd6+ {[%clk 0:00:17]}  Kxd6 {[%clk 0:00:22]} 41. a5 {[%clk 0:00:13]}  Bb4+ {[%clk 0:00:22]} 42. Kb3 {[%clk 0:00:13]}  Bxa5 {[%clk 0:00:22]} 43. Rh6+ {[%clk 0:00:08]}  Kc5 {[%clk 0:00:22]} 44. Rh5 {[%clk 0:00:05]}  Rf3+ {[%clk 0:00:21]} 45. Kc2 {[%clk 0:00:06]}  Kd6 {[%clk 0:00:21]} 46. Kd1 {[%clk 0:00:06]}  f5 {[%clk 0:00:18]} 47. Ke2 {[%clk 0:00:06]}  Rf4 {[%clk 0:00:18]} 48. Rh6+ {[%clk 0:00:06]}  Kc5 {[%clk 0:00:16]} 49. Ba8 {[%clk 0:00:04]}  Kd4 {[%clk 0:00:09]} 50. d6 {[%clk 0:00:04]}  Ke5 {[%clk 0:00:08]} 51. d7 {[%clk 0:00:04]}  Rd4 {[%clk 0:00:08]} 52. Bc6 {[%clk 0:00:04]}  Bc7 {[%clk 0:00:07]} 53. Kf3 {[%clk 0:00:04]}  Rd6 {[%clk 0:00:07]} 54. Rxd6 {[%clk 0:00:03]}  Kxd6 {[%clk 0:00:08]} 55. Ba4 {[%clk 0:00:04]}  Ke7 {[%clk 0:00:08]} 56. Bb5 {[%clk 0:00:03]}  f4 {[%clk 0:00:09]} 57. Bd3 {[%clk 0:00:04]}  Kd8 {[%clk 0:00:09]} 58. Be4 {[%clk 0:00:05]}  Ke7 {[%clk 0:00:09]} 59. Bf5 {[%clk 0:00:05]}  Kd8 {[%clk 0:00:10]} 60. Be4 {[%clk 0:00:06]}  Ke7 {[%clk 0:00:11]} 61. Bf5 {[%clk 0:00:07]}  Kd8 {[%clk 0:00:12]} 62. Bg4 {[%clk 0:00:08]}  Ke7 {[%clk 0:00:13]} 63. Bh3 {[%clk 0:00:09]}  Kd8 {[%clk 0:00:14]} 64. Bg4 {[%clk 0:00:10]}  Ke7 {[%clk 0:00:15]} 65. Bh3 {[%clk 0:00:11]}  Kd8 {[%clk 0:00:15]} 66. Bg4 {[%clk 0:00:12]} 1/2-1/2


[Site "https://www.chess.com"]